bitfinex/quotes_BTCUSD_20250705
["timestamp","ask_amount","ask_price","bid_price","bid_amount"]
[1751684053330,0.00304118,108220.0,108210.0,1.46933506]
[1751684055088,0.01171167,108220.0,108210.0,1.46933506]
[1751684055874,0.00304118,108220.0,108210.0,1.46933506]
[1751684057533,0.01171214,108220.0,108210.0,1.46933506]
[1751684058465,0.00304118,108220.0,108210.0,1.46933506]
[1751684058865,0.0117124,108220.0,108210.0,1.46933506]
[1751684059071,0.00304118,108220.0,108210.0,1.46933506]
[1751684059810,0.01171278,108220.0,108210.0,1.46933506]
[1751684061868,0.31562829,108230.0,108220.0,0.59986984]
[1751684061869,1e-08,108230.0,108220.0,0.59986984]
[1751684062231,0.0022,108250.0,108240.0,0.58528972]
[1751684062365,0.0022,108250.0,108240.0,0.90856665]
[1751684062567,0.00224708,108250.0,108240.0,0.90856665]
[1751684063170,0.00224708,108250.0,108240.0,1.20353579]
[1751684063397,0.00224708,108250.0,108240.0,1.29497272]
[1751684064866,0.00224708,108250.0,108240.0,1.29897272]
[1751684065340,0.00224708,108250.0,108240.0,1.60974106]
[1751684065547,0.00224708,108250.0,108240.0,1.32931277]
[1751684067338,0.00224708,108250.0,108240.0,1.90084142]
[1751684068230,0.00224708,108250.0,108240.0,1.62041313]
[1751684069434,0.00224708,108250.0,108240.0,1.61741313]
[1751684069860,0.00224708,108250.0,108240.0,1.62241313]
[1751684070435,0.00224708,108250.0,108240.0,1.61841313]
[1751684070874,0.00224708,108250.0,108240.0,1.25154791]
[1751684071075,0.00224708,108250.0,108240.0,1.5319762]
[1751684081930,0.00224708,108250.0,108240.0,1.25154791]
[1751684082091,0.00224708,108250.0,108240.0,1.5319762]
[1751684084186,0.00224708,108250.0,108240.0,1.25154791]
[1751684084410,0.00224708,108250.0,108240.0,1.5319762]
[1751684085859,0.00224708,108250.0,108240.0,1.5318562]
[1751684088175,0.00224708,108250.0,108240.0,1.25142791]
[1751684088307,0.00224708,108250.0,108240.0,1.5318562]
[1751684088749,0.00224708,108250.0,108240.0,1.5155562]
[1751684089374,0.00224708,108250.0,108240.0,1.23512791]
[1751684089579,0.00224708,108250.0,108240.0,1.5155562]
[1751684091821,0.00224708,108250.0,108240.0,1.03222791]
[1751684091822,0.28267537,108250.0,108240.0,1.03222791]
[1751684091976,0.31427537,108250.0,108240.0,1.21862791]
[1751684092384,0.31427537,108250.0,108240.0,1.13142701]
[1751684092587,0.33217632,108250.0,108240.0,1.13142701]
[1751684092759,0.34141351,108250.0,108240.0,1.13142701]
[1751684092982,0.35065098,108250.0,108240.0,1.13142701]
[1751684093312,0.35065098,108250.0,108240.0,1.12642701]
[1751684093730,0.35065098,108250.0,108240.0,1.12842701]
[1751684094480,0.34141371,108250.0,108240.0,1.12342701]
[1751684094679,0.33217652,108250.0,108240.0,1.12342701]
[1751684094832,0.33217652,108250.0,108240.0,1.12442701]
[1751684096034,0.32293942,108250.0,108240.0,1.12442701]
[1751684096684,0.33217669,108250.0,108240.0,1.12442701]
[1751684096902,0.33217661,108250.0,108240.0,1.12442701]
[1751684098452,0.32293942,108250.0,108240.0,1.12442701]
[1751684098658,0.32293623,108250.0,108240.0,1.12442701]
[1751684100032,0.33217333,108250.0,108240.0,1.12442701]
[1751684101085,0.33217262,108250.0,108240.0,1.12442701]
[1751684102457,0.33217262,108250.0,108240.0,1.22442701]
[1751684102937,0.32293552,108250.0,108240.0,1.22442701]
[1751684103148,0.30753552,108250.0,108240.0,1.31586394]
[1751684103363,0.29133552,108250.0,108240.0,1.31586394]
[1751684103581,0.01090723,108250.0,108240.0,1.25652701]
[1751684103862,0.00224708,108250.0,108240.0,1.5369553]
[1751684104264,0.00224708,108250.0,108240.0,1.25652701]
[1751684105655,0.29191247,108250.0,108240.0,1.03802701]
[1751684106028,0.3953353,108250.0,108240.0,1.26986701]
[1751684106601,0.38667515,108250.0,108240.0,1.26986701]
[1751684106768,0.39533362,108250.0,108240.0,1.26986701]
[1751684107578,0.40457089,108250.0,108240.0,1.26986701]
[1751684107777,0.39533362,108250.0,108240.0,1.26986701]
[1751684107961,0.50344725,108250.0,108240.0,1.26986701]
[1751684108475,0.51268435,108250.0,108240.0,1.26986701]
[1751684108801,0.11490533,108250.0,108240.0,1.26986701]
[1751684109005,0.44128457,108250.0,108240.0,1.26986701]
[1751684109404,0.04350555,108250.0,108240.0,1.26986701]
[1751684109604,0.45052176,108250.0,108240.0,1.26986701]
[1751684109882,0.44128457,108250.0,108240.0,1.26986701]
[1751684111030,0.45052176,108250.0,108240.0,1.26986701]
[1751684111230,0.44128457,108250.0,108240.0,1.26986701]
[1751684111723,0.44128457,108250.0,108240.0,1.46986701]
[1751684112131,0.45052176,108250.0,108240.0,1.46986701]
[1751684112338,0.44128457,108250.0,108240.0,1.46986701]
[1751684112539,0.45052167,108250.0,108240.0,1.46986701]
[1751684112785,0.51811065,108250.0,108240.0,1.46986701]
[1751684113011,0.5181113,108250.0,108240.0,1.46986701]
[1751684113663,0.44128522,108250.0,108240.0,1.46986701]
[1751684114165,0.0435062,108250.0,108240.0,1.46986701]
[1751684114981,0.05274339,108250.0,108240.0,1.46986701]
[1751684115183,0.0435062,108250.0,108240.0,1.46986701]
[1751684115540,0.05274459,108250.0,108240.0,1.46986701]
[1751684116171,0.45052361,108250.0,108240.0,1.46986701]
[1751684116869,0.4597608,108250.0,108240.0,1.46986701]
[1751684117062,0.45976088,108250.0,108240.0,1.46986701]
[1751684117483,0.45052361,108250.0,108240.0,1.46986701]
[1751684118516,0.45976307,108250.0,108240.0,1.46986701]
[1751684119159,0.45052588,108250.0,108240.0,1.46986701]
[1751684119620,0.45976315,108250.0,108240.0,1.46986701]
[1751684120235,0.45052588,108250.0,108240.0,1.46986701]
[1751684122575,0.44128878,108250.0,108240.0,1.46986701]
[1751684123170,0.05274686,108250.0,108240.0,1.46986701]
[1751684124011,0.01090976,108250.0,108240.0,1.46986701]
[1751684124177,0.01090976,108250.0,108240.0,1.48566701]
[1751684126079,0.01090976,108250.0,108240.0,1.25382701]
[1751684126249,0.01090976,108250.0,108240.0,1.48550701]
[1751684127880,0.29055805,108250.0,108240.0,1.48550701]
[1751684128782,0.29055805,108250.0,108240.0,1.57694394]
[1751684129189,0.29055805,108250.0,108240.0,1.48550701]
[1751684132969,0.29056637,108250.0,108240.0,1.48550701]
[1751684135911,0.29056637,108250.0,108240.0,1.46970701]
[1751684137598,0.29056637,108250.0,108240.0,1.48500701]
[1751684138008,0.01091808,108250.0,108240.0,1.48500701]
[1751684138345,0.29056637,108250.0,108240.0,1.48500701]
[1751684142946,0.01091808,108250.0,108240.0,1.87249223]
[1751684143090,0.01091808,108250.0,108240.0,1.59284394]
[1751684143291,0.01091808,108250.0,108240.0,1.50140701]
[1751684147072,0.01091808,108250.0,108240.0,1.7810553]
[1751684149719,0.01091808,108250.0,108240.0,1.50140701]
[1751684156213,0.01091808,108250.0,108240.0,1.48500701]
[1751684157013,0.01091808,108250.0,108240.0,1.7646553]
[1751684157415,0.01091808,108250.0,108240.0,1.77576325]
[1751684158537,0.01091808,108250.0,108240.0,1.79176325]
[1751684159134,0.0109181,108250.0,108240.0,1.79176325]
[1751684159918,0.0109181,108250.0,108240.0,1.25332701]
[1751684160189,0.0109181,108250.0,108240.0,1.43972701]
[1751684160957,0.0109181,108250.0,108240.0,1.42442701]
[1751684161156,0.29980358,108250.0,108240.0,1.23802701]
[1751684161363,0.33090358,108250.0,108240.0,1.42442701]
[1751684161668,0.34014085,108250.0,108240.0,1.42442701]
[1751684163309,0.33090358,108250.0,108240.0,1.42442701]
[1751684163514,0.32166639,108250.0,108240.0,1.42442701]
[1751684163825,0.33090257,108250.0,108240.0,1.42442701]
[1751684164178,0.34013984,108250.0,108240.0,1.42442701]
[1751684164378,0.34013976,108250.0,108240.0,1.42442701]
[1751684165828,0.3493772,108250.0,108240.0,1.42442701]
[1751684166035,0.42595147,108250.0,108240.0,1.42442701]
[1751684166562,0.44442652,108250.0,108240.0,1.23802718]
[1751684166854,0.45366477,108250.0,108240.0,1.43366539]
[1751684167121,0.46662528,108250.0,108240.0,1.43366539]
[1751684167596,0.46662528,108250.0,108240.0,1.42442718]
[1751684168505,0.45738741,108250.0,108240.0,1.42442718]
[1751684168709,0.45738741,108250.0,108240.0,1.43366531]
[1751684169447,0.46662528,108250.0,108240.0,1.42442718]
[1751684170306,0.46662528,108250.0,108240.0,1.43366539]
[1751684170656,0.46662528,108250.0,108240.0,1.44290352]
[1751684171625,0.36233792,108250.0,108240.0,1.44290352]
[1751684171824,0.34014022,108250.0,108240.0,1.44290352]
[1751684172760,0.34937792,108250.0,108240.0,1.44290352]
[1751684173561,0.34014022,108250.0,108240.0,1.44290352]
[1751684174066,0.34937792,108250.0,108240.0,1.44290352]
[1751684174282,0.43611382,108250.0,108240.0,1.44290352]
[1751684174493,0.45831152,108250.0,108240.0,1.44290352]
[1751684177001,0.05158921,108250.0,108240.0,1.44290352]
[1751684177224,0.3090398,108250.0,108240.0,1.44290352]
[1751684179117,0.31827741,108250.0,108240.0,1.44290352]
[1751684179595,0.3090398,108250.0,108240.0,1.44290352]
[1751684180109,0.30903673,108250.0,108240.0,1.44290352]
[1751684180725,0.30903677,108250.0,108240.0,1.44290352]
[1751684180970,0.30037,108250.0,108240.0,1.44290352]
[1751684184218,0.28189537,108250.0,108240.0,1.44290352]
[1751684184449,0.30037008,108250.0,108240.0,1.44290352]
[1751684186756,0.01148435,108250.0,108240.0,1.44290352]
[1751684187219,0.29113264,108250.0,108240.0,1.44290352]
[1751684187439,0.29113247,108250.0,108240.0,1.44290352]
[1751684187555,0.28189537,108250.0,108240.0,1.45940352]
[1751684187976,0.29113247,108250.0,108240.0,1.45940352]
[1751684188617,0.2998004,108250.0,108240.0,1.45940352]
[1751684190543,0.30903759,108250.0,108240.0,1.45940352]
[1751684191383,0.01091501,108250.0,108240.0,1.75525181]
[1751684191889,0.01091545,108250.0,108240.0,1.75525181]
[1751684194231,0.01091545,108250.0,108240.0,1.47560352]
[1751684195918,0.29056374,108250.0,108240.0,1.47560352]
[1751684205718,0.29980084,108250.0,108240.0,1.47560352]
[1751684205922,0.29056374,108250.0,108240.0,1.47560352]
[1751684208477,0.28189537,108250.0,108240.0,1.47560352]
[1751684208887,0.29056471,108250.0,108240.0,1.47560352]
[1751684212168,0.01091642,108250.0,108240.0,1.47560352]
[1751684212370,0.29056471,108250.0,108240.0,1.47560352]
[1751684215487,0.01091642,108250.0,108240.0,1.47560352]
[1751684215700,0.29056471,108250.0,108240.0,1.47560352]
[1751684216606,0.01091642,108250.0,108240.0,1.47560352]
[1751684216802,0.29056471,108250.0,108240.0,1.47560352]
[1751684217006,0.01091642,108250.0,108240.0,1.47560352]
[1751684220937,0.29056471,108250.0,108240.0,1.47560352]
[1751684226556,0.01091642,108250.0,108240.0,1.47560352]
[1751684226758,0.29056471,108250.0,108240.0,1.47560352]
[1751684226962,0.01091642,108250.0,108240.0,1.47560352]
[1751684227169,0.29056471,108250.0,108240.0,1.47560352]
[1751684228959,0.29056634,108250.0,108240.0,1.47560352]
[1751684233283,0.01091805,108250.0,108240.0,1.47560352]
[1751684234439,0.01091805,108250.0,108240.0,1.75525181]
[1751684236499,0.01091805,108250.0,108240.0,1.47560352]
[1751684240454,0.01091801,108250.0,108240.0,1.47560352]
[1751684242998,0.01091801,108250.0,108240.0,1.75525181]
[1751684243421,0.01091803,108250.0,108240.0,1.75525181]
[1751684248211,0.01091803,108250.0,108240.0,1.47560352]
[1751684248415,0.01091803,108250.0,108240.0,1.75525181]
[1751684249229,0.00224708,108250.0,108240.0,1.75525181]
[1751684249461,0.01091815,108250.0,108240.0,1.75525181]
[1751684253120,0.01091815,108250.0,108240.0,1.80057181]
[1751684255253,0.01091815,108250.0,108240.0,1.52092352]
[1751684255461,0.01091815,108250.0,108240.0,1.80057181]
[1751684256858,0.01091815,108250.0,108240.0,1.52092352]
[1751684257065,0.01091815,108250.0,108240.0,1.80057181]
[1751684258229,0.01091815,108250.0,108240.0,1.52092352]
[1751684258432,0.02015525,108250.0,108240.0,1.52092352]
[1751684258731,0.01091815,108250.0,108240.0,1.52092352]
[1751684259113,0.01091815,108250.0,108240.0,1.80057181]
[1751684264124,0.01091815,108250.0,108240.0,1.52092352]
[1751684265438,0.02015525,108250.0,108240.0,1.52092352]
[1751684265646,0.01091815,108250.0,108240.0,1.52092352]
[1751684266423,0.00224708,108250.0,108240.0,1.52092352]
[1751684266710,0.01091836,108250.0,108240.0,1.52092352]
[1751684268319,0.02015546,108250.0,108240.0,1.52092352]
[1751684268531,0.01091836,108250.0,108240.0,1.52092352]
[1751684269300,0.01091836,108250.0,108240.0,1.80057181]
[1751684273801,0.01091836,108250.0,108240.0,1.52092352]
[1751684273972,0.01091836,108250.0,108240.0,1.80057181]
[1751684274319,0.01091836,108250.0,108240.0,1.52092352]
[1751684274519,0.01091836,108250.0,108240.0,1.80057181]
[1751684274916,0.32747975,108250.0,108240.0,1.48822352]
[1751684275855,0.33671685,108250.0,108240.0,1.48822352]
[1751684276057,0.36901685,108250.0,108240.0,1.44290352]
[1751684277370,0.36235404,108250.0,108240.0,1.25650352]
[1751684277576,0.36235404,108250.0,108240.0,1.4060705]
[1751684277577,0.57224958,108250.0,108240.0,1.4060705]
[1751684277834,0.59444592,108250.0,108240.0,1.4060705]
[1751684278044,0.58520873,108250.0,108240.0,1.39683186]
[1751684278248,0.58520873,108250.0,108240.0,1.21031186]
[1751684278585,0.58520873,108250.0,108240.0,1.39683186]
[1751684278792,0.58520873,108250.0,108240.0,1.40607058]
[1751684279419,0.58520873,108250.0,108240.0,1.41530905]
[1751684279573,0.58520873,108250.0,108240.0,1.41530913]
[1751684279977,0.58520873,108250.0,108240.0,1.4245476]
[1751684280763,0.58520632,108250.0,108240.0,1.4245476]
[1751684281349,0.58520632,108250.0,108240.0,1.41530913]
[1751684282005,0.57596888,108250.0,108240.0,1.41530913]
[1751684283364,0.57595801,108250.0,108240.0,1.41530913]
[1751684284155,0.56672031,108250.0,108240.0,1.41530913]
[1751684284445,0.56672031,108250.0,108240.0,1.4245476]
[1751684289826,0.56672031,108250.0,108240.0,1.43378598]
[1751684290786,0.56672031,108250.0,108240.0,1.40607058]
[1751684293922,0.56672031,108250.0,108240.0,1.41530922]
[1751684294135,0.28707202,108250.0,108240.0,1.41530922]
[1751684294380,0.22797345,108250.0,108240.0,1.42454777]
[1751684294594,0.22797345,108250.0,108240.0,1.43378624]
[1751684294595,0.50762174,108250.0,108240.0,1.43378624]
[1751684294803,0.52980721,108250.0,108240.0,1.43378624]
[1751684295581,0.52980721,108250.0,108240.0,1.14268588]
[1751684295810,0.62124414,108250.0,108240.0,1.14268588]
[1751684297756,0.62124414,108250.0,108240.0,1.15192426]
[1751684297961,0.52980721,108250.0,108240.0,1.15192426]
[1751684300233,0.52980216,108250.0,108240.0,1.15192426]
[1751684300879,0.52980216,108250.0,108240.0,1.15192384]
[1751684301089,0.52980216,108250.0,108240.0,1.13344716]
[1751684301425,0.52980216,108250.0,108240.0,1.14268554]
[1751684301639,0.52980216,108250.0,108240.0,1.13344716]
[1751684301872,0.62123909,108250.0,108240.0,1.13344716]
[1751684302500,0.62123909,108250.0,108240.0,1.11497014]
[1751684303665,0.62123909,108250.0,108240.0,1.12420869]
[1751684303883,0.62123909,108250.0,108240.0,1.13344716]
[1751684304480,0.62123909,108250.0,108240.0,1.12420869]
[1751684308204,0.62123909,108250.0,108240.0,1.11497014]
[1751684309024,0.62124603,108250.0,108240.0,1.1057315]
[1751684309237,0.62124603,108250.0,108240.0,0.92087693]
[1751684309467,0.93513013,108250.0,108240.0,0.643]
[1751684309676,0.65548184,108250.0,108240.0,0.82944]
[1751684310089,0.65548184,108250.0,108240.0,0.82744]
[1751684310290,0.69244563,108250.0,108240.0,0.82744]
[1751684310530,0.65548184,108250.0,108240.0,0.82744]
[1751684310702,0.65548184,108250.0,108240.0,0.82644]
[1751684311845,0.65548184,108250.0,108240.0,0.82648]
[1751684314259,0.65548184,108250.0,108240.0,0.64]
[1751684314465,0.65548184,108250.0,108240.0,0.82644]
[1751684327952,0.63958184,108250.0,108240.0,0.82644]
[1751684328632,0.62318184,108250.0,108240.0,0.82644]
[1751684330232,0.53174491,108250.0,108240.0,0.82644]
[1751684334542,0.54098278,108250.0,108240.0,1.02045329]
[1751684334767,0.54098278,108250.0,108240.0,1.03575329]
[1751684335121,0.54097705,108250.0,108240.0,1.03575329]
[1751684337001,0.54097705,108250.0,108240.0,1.02651457]
[1751684337196,0.63241398,108250.0,108240.0,0.82644]
[1751684337661,0.66937777,108250.0,108240.0,0.82644]
[1751684338865,0.57794084,108250.0,108240.0,1.02045329]
[1751684340679,0.57794178,108250.0,108240.0,1.02045329]
[1751684341119,0.57794178,108250.0,108240.0,1.03665329]
[1751684341266,0.57794178,108250.0,108240.0,1.02741457]
[1751684342238,0.29829349,108250.0,108240.0,1.03665329]
[1751684342439,0.57794178,108250.0,108240.0,1.04589193]
[1751684342781,0.57794203,108250.0,108240.0,1.03665329]
[1751684343369,0.57794203,108250.0,108240.0,1.04589193]
[1751684343785,0.57794203,108250.0,108240.0,1.07053048]
[1751684344227,0.66937896,108250.0,108240.0,1.07053048]
[1751684344430,0.58717964,108250.0,108240.0,1.07976895]
[1751684346228,0.58717964,108250.0,108240.0,1.07053048]
[1751684347703,0.58717964,108250.0,108240.0,1.06129193]
[1751684348277,0.57850769,108250.0,108240.0,1.06129193]
[1751684348899,0.57200945,108250.0,108240.0,1.06129193]
[1751684349480,0.29236116,108250.0,108240.0,1.06129193]
[1751684349679,0.66344638,108250.0,108240.0,1.05205329]
[1751684350683,0.57200945,108250.0,108240.0,1.06129193]
[1751684351725,0.29236116,108250.0,108240.0,1.06129193]
[1751684351922,0.57200945,108250.0,108240.0,1.06129193]
[1751684352122,0.56277184,108250.0,108240.0,1.06129193]
[1751684352777,0.56280604,108250.0,108240.0,1.06129193]
[1751684353230,0.65424297,108250.0,108240.0,1.06129193]
[1751684356474,0.66941901,108250.0,108240.0,1.06129193]
[1751684358607,0.29833379,108250.0,108240.0,1.07053048]
[1751684358821,0.57798208,108250.0,108240.0,1.07053048]
[1751684360585,0.37473491,108250.0,108240.0,1.18044367]
[1751684360800,0.37473491,108250.0,108240.0,1.47154403]
[1751684361003,0.38397226,108250.0,108240.0,1.47154403]
[1751684361242,0.37473465,108250.0,108240.0,1.47154403]
[1751684362654,0.38397226,108250.0,108240.0,1.47154403]
[1751684363285,0.11356167,108250.0,108240.0,1.47154403]
[1751684363518,0.39320996,108250.0,108240.0,1.47154403]
[1751684363997,0.39320789,108250.0,108240.0,1.47154403]
[1751684364465,0.39320789,108250.0,108240.0,1.47254403]
[1751684366132,0.39320857,108250.0,108240.0,1.47254403]
[1751684367547,0.39320925,108250.0,108240.0,1.47254403]
[1751684367750,0.38397181,108250.0,108240.0,1.4633059]
[1751684368803,0.56872931,108250.0,108240.0,1.4633059]
[1751684368980,0.37798177,108250.0,108240.0,1.4725442]
[1751684369187,0.28908007,108250.0,108240.0,1.47254377]
[1751684369449,0.56872836,108250.0,108240.0,1.47254377]
[1751684369861,0.56872413,108250.0,108240.0,1.47254377]
[1751684372865,0.56872413,108250.0,108240.0,1.46330556]
[1751684373912,0.65092345,108250.0,108240.0,1.45406726]
[1751684374320,0.65092345,108250.0,108240.0,1.46330556]
[1751684374542,0.55948652,108250.0,108240.0,1.46330556]
[1751684375107,0.37472902,108250.0,108240.0,1.47254377]
[1751684376829,0.55948652,108250.0,108240.0,1.45406726]
[1751684378455,0.55948635,108250.0,108240.0,1.45406726]
[1751684378649,0.55948635,108250.0,108240.0,1.46330556]
[1751684379354,0.55948635,108250.0,108240.0,1.47254377]
[1751684379756,0.55948635,108250.0,108240.0,1.46330556]
[1751684379958,0.55948635,108250.0,108240.0,1.45406726]
[1751684381401,0.27983806,108250.0,108240.0,1.46330556]
[1751684381605,0.55948635,108250.0,108240.0,1.46330556]
[1751684381822,0.55948635,108250.0,108240.0,1.45406726]
[1751684382347,0.55948635,108250.0,108240.0,1.46330556]
[1751684386825,0.55948635,108250.0,108240.0,1.45406726]
[1751684389006,0.55948635,108250.0,108240.0,1.44482888]
[1751684389209,0.55024865,108250.0,108240.0,1.44482888]
[1751684389452,0.55024865,108250.0,108240.0,1.42942888]
[1751684390043,0.55024865,108250.0,108240.0,1.43866726]
[1751684391474,0.55024865,108250.0,108240.0,1.46400556]
[1751684392268,0.27060036,108250.0,108240.0,1.46400556]
[1751684392468,0.55024865,108250.0,108240.0,1.46400556]
[1751684393712,0.55024865,108250.0,108240.0,1.44552888]
[1751684393931,0.55024865,108250.0,108240.0,1.45476726]
[1751684395968,0.38396578,108250.0,108240.0,1.46400556]
[1751684396265,0.38396578,108250.0,108240.0,1.47324377]
[1751684396988,0.38396117,108250.0,108240.0,1.47324377]
[1751684397580,0.10431288,108250.0,108240.0,1.47324377]
[1751684397908,0.38396117,108250.0,108240.0,1.47324377]
[1751684398673,0.38396753,108250.0,108240.0,1.47324377]
[1751684399281,0.56872505,108250.0,108240.0,1.45476726]
[1751684399455,0.28907676,108250.0,108240.0,1.45476726]
[1751684399661,0.56872505,108250.0,108240.0,1.46400556]
[1751684400608,0.38396738,108250.0,108240.0,1.47324369]
[1751684402191,0.08584369,108250.0,108240.0,1.47324369]
[1751684402393,0.36549198,108250.0,108240.0,1.47324369]
[1751684402592,0.06736898,108250.0,108240.0,1.75289198]
[1751684402804,0.04235434,108250.0,108240.0,1.75289198]
[1751684403045,0.04235425,108250.0,108240.0,1.47324369]
[1751684403200,0.03311715,108250.0,108240.0,1.47324369]
[1751684403404,0.03311715,108250.0,108240.0,1.47224369]
[1751684403692,0.04235434,108250.0,108240.0,1.47424369]
[1751684403862,0.0515917,108250.0,108240.0,1.47424369]
[1751684404093,0.04235434,108250.0,108240.0,1.47524369]
[1751684404249,0.0515917,108250.0,108240.0,1.47524369]
[1751684404425,0.04235434,108250.0,108240.0,1.47524369]
[1751684404906,0.0515917,108250.0,108240.0,1.47524369]
[1751684405054,0.04235434,108250.0,108240.0,1.47524369]
[1751684405450,0.04235232,108250.0,108240.0,1.47524369]
[1751684406540,0.04292027,108250.0,108240.0,1.47524369]
[1751684406718,0.33123761,108250.0,108240.0,1.47524369]
[1751684407180,0.32200025,108250.0,108240.0,1.47524369]
[1751684408362,0.33123761,108250.0,108240.0,1.47524369]
[1751684408741,0.32200025,108250.0,108240.0,1.47524369]
[1751684409359,0.03311477,108250.0,108240.0,1.47524369]
[1751684410040,0.31276306,108250.0,108240.0,1.47524369]
[1751684410239,0.32200025,108250.0,108240.0,1.47524369]
[1751684410504,0.31276306,108250.0,108240.0,1.47524369]
[1751684410719,0.32200025,108250.0,108240.0,1.47524369]
[1751684410859,0.32200016,108250.0,108240.0,1.47524369]
[1751684411050,0.04235187,108250.0,108240.0,1.47524369]
[1751684412105,0.05158914,108250.0,108240.0,1.47524369]
[1751684412697,0.33123743,108250.0,108240.0,1.47524369]
[1751684412893,0.32200016,108250.0,108240.0,1.47524369]
[1751684413073,0.33123743,108250.0,108240.0,1.47524369]
[1751684414116,0.04235187,108250.0,108240.0,1.47524369]
[1751684414313,0.32200016,108250.0,108240.0,1.47524369]
[1751684414938,0.29056442,108250.0,108240.0,1.47524369]
[1751684415312,0.01091613,108250.0,108240.0,1.47524369]
[1751684415779,0.0108607,108250.0,108240.0,1.47524369]
[1751684416123,0.02009789,108250.0,108240.0,1.47524369]
[1751684416323,0.0108607,108250.0,108240.0,1.47524369]
[1751684416569,0.0200978,108250.0,108240.0,1.47524369]
[1751684417737,0.0108607,108250.0,108240.0,1.47524369]
[1751684418162,0.02009605,108250.0,108240.0,1.47524369]
[1751684418360,0.27454524,108260.0,108250.0,0.20323281]
[1751684418556,0.27454524,108260.0,108250.0,0.7721701]
[1751684418781,0.46852243,108260.0,108250.0,0.77217027]
[1751684419285,0.30225553,108260.0,108250.0,0.78140771]
[1751684419634,0.30225549,108260.0,108250.0,0.78140771]
[1751684419860,0.48699592,108260.0,108250.0,0.77217027]
[1751684420085,0.48699592,108260.0,108250.0,0.79164541]
[1751684420236,0.04344765,108260.0,108250.0,0.80088285]
[1751684420456,0.32309594,108260.0,108250.0,0.80088285]
[1751684421309,0.01573668,108260.0,108250.0,0.83228285]
[1751684421484,0.3165944,108260.0,108250.0,0.81380763]
[1751684421704,0.33233185,108260.0,108250.0,0.82304507]
[1751684421906,0.32583142,108260.0,108250.0,0.82304507]
[1751684422092,0.3165944,108260.0,108250.0,0.82304507]
[1751684422298,0.3165944,108260.0,108250.0,0.83228243]
[1751684422497,0.3165944,108260.0,108250.0,0.832282]
[1751684422795,0.32583142,108260.0,108250.0,0.81380737]
[1751684423209,0.06715109,108270.0,108260.0,0.24385046]
[1751684423428,0.03021808,108270.0,108260.0,1.08098397]
[1751684423799,0.00244708,108270.0,108260.0,0.80133568]
[1751684424945,0.00244708,108270.0,108260.0,1.08098397]
[1751684425367,0.00244708,108270.0,108260.0,1.08198397]
[1751684426336,0.00244708,108270.0,108260.0,1.08398397]
[1751684428211,0.00244708,108270.0,108260.0,0.80433568]
[1751684428620,0.00244708,108270.0,108260.0,1.09543604]
[1751684430673,0.00244708,108270.0,108260.0,0.81578775]
[1751684430881,0.00244708,108270.0,108260.0,1.09539604]
[1751684438093,0.00244708,108270.0,108260.0,1.18683297]
[1751684438292,0.00244708,108270.0,108260.0,1.37504433]
[1751684440529,0.00244708,108270.0,108260.0,1.09539604]
[1751684443509,0.00244708,108270.0,108260.0,1.37504433]
[1751684443692,0.00244708,108270.0,108260.0,1.09539604]
[1751684453323,0.0110872,108270.0,108260.0,1.09539604]
[1751684454100,0.0110872,108270.0,108260.0,1.37504433]
[1751684457804,0.0110872,108270.0,108260.0,0.81574775]
[1751684457984,0.0110872,108270.0,108260.0,1.09539604]
[1751684459655,0.0110872,108270.0,108260.0,0.81574775]
[1751684459854,0.0110872,108270.0,108260.0,1.09539604]
[1751684461057,0.01111555,108270.0,108260.0,1.09539604]
[1751684461255,0.01111555,108270.0,108260.0,1.18683297]
[1751684461853,0.01111555,108270.0,108260.0,1.09539604]
[1751684463086,0.01111555,108270.0,108260.0,1.37504433]
[1751684466035,0.00588555,108270.0,108260.0,1.37504433]
[1751684466687,0.00588555,108270.0,108260.0,0.81574775]
[1751684466912,0.00588555,108270.0,108260.0,1.37504433]
[1751684467574,0.00588555,108270.0,108260.0,1.09539604]
[1751684471902,0.00588555,108270.0,108260.0,1.19539604]
[1751684475409,0.3186189,108280.0,108270.0,0.55243084]
[1751684475576,0.3186189,108280.0,108270.0,0.83014777]
[1751684476742,0.3186189,108280.0,108270.0,0.83114777]
[1751684477243,0.30938436,108280.0,108270.0,0.83114777]
[1751684478233,0.31805327,108280.0,108270.0,0.83114777]
[1751684478895,0.31805327,108280.0,108270.0,1.12224813]
[1751684479091,0.03840498,108280.0,108270.0,1.12224813]
[1751684481393,0.03840532,108280.0,108270.0,1.12224813]
[1751684482156,0.03840532,108280.0,108270.0,1.32224813]
[1751684487121,0.03840526,108280.0,108270.0,1.32224813]
[1751684489790,0.03840526,108280.0,108270.0,1.42224813]
[1751684490033,0.03840519,108280.0,108270.0,1.42224813]
[1751684490639,0.03840519,108280.0,108270.0,1.70189642]
[1751684492273,0.03840519,108280.0,108270.0,1.71719642]
[1751684493118,0.03840519,108280.0,108270.0,1.70189642]
[1751684493675,0.03840519,108280.0,108270.0,1.42224813]
[1751684495769,0.02973607,108280.0,108270.0,1.42224813]
[1751684496007,0.03840485,108280.0,108270.0,1.42224813]
[1751684501278,0.03840485,108280.0,108270.0,1.43734813]
[1751684501681,0.03840469,108280.0,108270.0,1.43734813]
[1751684503061,0.03840469,108280.0,108270.0,1.82493335]
[1751684503261,0.00754508,108280.0,108270.0,1.82493335]
[1751684504264,0.00754508,108280.0,108270.0,2.16536249]
[1751684504806,0.00754508,108280.0,108270.0,1.8847142]
[1751684505006,0.00754508,108280.0,108270.0,2.16436249]
[1751684505126,0.00754508,108280.0,108270.0,1.8867142]
[1751684505327,0.00754508,108280.0,108270.0,2.16536249]
[1751684505534,0.00754508,108280.0,108270.0,1.63382391]
[1751684505761,0.002,108290.0,108280.0,0.54250735]
[1751684505973,0.00204707,108290.0,108280.0,1.47091779]
[1751684507252,0.00204707,108290.0,108280.0,1.47391779]
[1751684507461,0.00204707,108290.0,108280.0,0.91462121]
[1751684507668,0.00204707,108290.0,108280.0,1.47391779]
[1751684508123,0.00204707,108290.0,108280.0,1.81391779]
[1751684508777,0.00204707,108290.0,108280.0,1.81791779]
[1751684510664,0.00204707,108290.0,108280.0,1.82161779]
[1751684514013,0.00204707,108290.0,108280.0,1.81861779]
[1751684514415,0.00204707,108290.0,108280.0,1.81961779]
[1751684514658,0.00204707,108290.0,108280.0,1.91961779]
[1751684514872,0.00204707,108290.0,108280.0,1.92461779]
[1751684517538,0.0002,108300.0,108290.0,1.15968896]
[1751684517751,0.0002,108300.0,108290.0,1.4887931]
[1751684518294,0.0002,108300.0,108290.0,1.76844139]
[1751684518707,0.0002,108300.0,108290.0,1.4927931]
[1751684518906,0.0002,108300.0,108290.0,1.4957931]
[1751684520451,0.0002,108300.0,108290.0,1.77544139]
[1751684522961,0.0002,108300.0,108290.0,1.80319339]
[1751684523620,0.0002,108300.0,108290.0,2.00319339]
[1751684523823,0.0054795,108330.0,108320.0,0.59947363]
[1751684524030,0.0054795,108330.0,108320.0,1.51666644]
[1751684524031,0.0059503,108330.0,108320.0,1.51666644]
[1751684524456,0.0059503,108330.0,108320.0,1.54441244]
[1751684524866,0.0059503,108330.0,108320.0,1.51666644]
[1751684525072,0.0059503,108330.0,108320.0,1.56186644]
[1751684525307,0.0059503,108330.0,108320.0,1.56486644]